bitfinex-derivatives/quotes_BTCF0:USTF0_20240830
["timestamp","ask_amount","ask_price","bid_price","bid_amount"]
[1725042002309,0.025,58835.0,58834.0,0.04678554]
[1725042003218,0.025,58835.0,58834.0,0.17668554]
[1725042008625,0.025,58835.0,58834.0,0.68660554]
[1725042008925,0.025,58835.0,58834.0,1.48660554]
[1725042009225,0.3608,58850.0,58843.0,0.084976]
[1725042009428,0.58069769,58850.0,58843.0,0.445776]
[1725042009618,0.2,58846.0,58843.0,0.445776]
[1725042010634,0.58069769,58850.0,58843.0,0.445776]
[1725042010818,0.0082549,58844.0,58843.0,0.446776]
[1725042011131,0.0142549,58844.0,58843.0,1.557616]
[1725042011430,0.2,58863.0,58843.0,1.83344]
[1725042011627,0.36947098,58866.0,58850.0,0.3608]
[1725042011628,0.2,58858.0,58850.0,0.3608]
[1725042012313,0.2,58858.0,58843.0,0.38187973]
[1725042012314,0.084974,58844.0,58843.0,0.001]
[1725042012512,0.645774,58844.0,58843.0,0.001]
[1725042012726,0.645774,58844.0,58830.0,0.3608]
[1725042012727,0.084978,58842.0,58830.0,0.3608]
[1725042012920,0.2,58839.0,58838.0,0.3608]
[1725042013616,0.2,58839.0,58833.0,0.0002549]
[1725042013617,0.084987,58835.0,58833.0,0.0002549]
[1725042013819,0.5633276,58835.0,58823.0,0.3608]
[1725042014016,0.5633276,58835.0,58807.0,0.277]
[1725042014017,0.085008,58821.0,58812.0,0.3608]
[1725042014226,0.5608,58824.0,58812.0,0.3608]
[1725042014227,0.2,58813.0,58812.0,0.3608]
[1725042014426,0.199,58813.0,58812.0,0.3608]
[1725042014624,0.2,58817.0,58812.0,0.3608]
[1725042014818,0.199,58817.0,58812.0,0.3608]
[1725042015332,0.0002549,58820.0,58812.0,0.3608]
[1725042015333,0.285018,58814.0,58812.0,0.3608]
[1725042016019,0.3608,58813.0,58809.0,0.0002549]
[1725042016327,0.085022,58811.0,58809.0,0.0002549]
[1725042016723,0.073022,58811.0,58809.0,0.0002549]
[1725042016918,0.059022,58811.0,58809.0,0.0002549]
[1725042017429,0.061022,58811.0,58809.0,0.0002549]
[1725042018227,0.064022,58811.0,58809.0,0.0012549]
[1725042020517,0.061022,58811.0,58809.0,0.0012549]
[1725042020722,0.061022,58811.0,58809.0,0.0022549]
[1725042020723,0.072022,58811.0,58809.0,0.0022549]
[1725042022123,0.013,58811.0,58809.0,0.0022549]
[1725042024434,0.098022,58811.0,58809.0,0.0022549]
[1725042025332,0.28767922,58813.0,58809.0,0.0022549]
[1725042025517,0.02051154,58817.0,58809.0,0.0022549]
[1725042025721,0.08502,58812.0,58809.0,0.0022549]
[1725042026130,0.085022,58811.0,58809.0,0.0022549]
[1725042027033,0.25,58817.0,58809.0,0.0022549]
[1725042027534,0.007,58813.0,58809.0,0.0022549]
[1725042027928,0.085023,58810.0,58809.0,0.0022549]
[1725042028528,0.085023,58810.0,58809.0,0.0012549]
[1725042028730,0.085023,58810.0,58809.0,0.0022549]
[1725042029130,0.085023,58810.0,58809.0,0.0012549]
[1725042029325,0.096023,58810.0,58809.0,0.0022549]
[1725042030235,0.103023,58810.0,58809.0,0.0022549]
[1725042032242,0.188046,58810.0,58809.0,0.0022549]
[1725042032724,0.318846,58810.0,58809.0,0.0022549]
[1725042033327,0.233823,58810.0,58809.0,0.0022549]
[1725042033531,0.103023,58810.0,58809.0,0.0022549]
[1725042034036,0.103023,58810.0,58809.0,0.0872799]
[1725042034440,0.0206001,58813.0,58809.0,1.5581999]
[1725042034748,0.0002549,58820.0,58812.0,0.25]
[1725042034932,0.0002549,58820.0,58819.0,0.32501]
[1725042035130,0.0002549,58820.0,58819.0,0.83505]
[1725042035331,0.0002549,58820.0,58819.0,1.44505]
[1725042035632,0.08499,58833.0,58819.0,1.4855308]
[1725042035834,0.08499,58833.0,58829.0,0.3608]
[1725042036340,0.084986,58836.0,58833.0,0.084989]
[1725042036539,0.084989,58834.0,58829.0,0.3610549]
[1725042036930,0.084989,58834.0,58831.0,0.084993]
[1725042038036,0.084989,58834.0,58831.0,0.001]
[1725042038235,0.02035364,58840.0,58838.0,0.084983]
[1725042038454,0.02035364,58840.0,58839.0,0.3608]
[1725042038455,0.0002549,58840.0,58839.0,0.3608]
[1725042038637,0.0002549,58840.0,58839.0,0.445781]
[1725042040044,0.0002549,58840.0,58839.0,0.3608]
[1725042040244,0.2402549,58840.0,58832.0,0.3608]
[1725042040430,0.08399,58833.0,58832.0,0.3608]
[1725042041238,0.08299,58833.0,58832.0,0.3608]
[1725042041540,0.084981,58839.0,58832.0,0.445791]
[1725042041541,0.324981,58839.0,58832.0,0.445791]
[1725042041842,0.001,58833.0,58832.0,0.446791]
[1725042042048,0.001,58833.0,58832.0,0.3618]
[1725042042346,0.08599,58833.0,58832.0,0.3618]
[1725042043144,0.08599,58833.0,58832.0,0.3628]
[1725042043145,0.001,58833.0,58832.0,0.3628]
[1725042043336,0.001,58833.0,58832.0,0.687792]
[1725042043531,0.08799,58833.0,58832.0,0.3628]
[1725042044143,0.08699,58833.0,58832.0,0.3628]
[1725042046143,0.08699,58833.0,58832.0,0.447792]
[1725042046144,0.002,58833.0,58832.0,0.447792]
[1725042046337,0.002,58833.0,58832.0,0.686792]
[1725042046544,0.002,58833.0,58832.0,0.687792]
[1725042047140,0.002,58833.0,58832.0,1.796712]
[1725042047336,0.0002549,58840.0,58839.0,0.084981]
[1725042047532,0.0002549,58840.0,58839.0,0.685781]
[1725042048746,0.0042549,58840.0,58839.0,0.686781]
[1725042052547,0.0042549,58840.0,58839.0,1.966623]
[1725042052736,0.734,58867.0,58839.0,1.796661]
[1725042053049,0.0201924,58861.0,58856.0,0.445756]
[1725042053241,0.084955,58857.0,58856.0,0.3608]
[1725042053940,0.0852039,58862.0,58856.0,0.3608]
[1725042054141,0.0002549,58862.0,58861.0,0.08495]
[1725042054942,0.0002549,58862.0,58861.0,0.44575]
[1725042055451,0.0002549,58862.0,58861.0,0.68575]
[1725042055949,0.0002549,58862.0,58861.0,0.44575]
[1725042056651,0.0002549,58862.0,58861.0,0.44675]
[1725042056948,0.0002549,58862.0,58861.0,0.44775]
[1725042058254,0.0852029,58862.0,58861.0,0.44775]
[1725042060146,0.0852029,58862.0,58861.0,0.3628]
[1725042060351,0.0852029,58862.0,58861.0,0.002]
[1725042060756,0.5309509,58862.0,58861.0,0.002]
[1725042060945,0.1701509,58862.0,58861.0,0.002]
[1725042062050,0.0002549,58862.0,58861.0,0.08695]
[1725042064056,0.0002549,58862.0,58861.0,0.1709]
[1725042064257,0.0002549,58862.0,58861.0,1.28158]
[1725042064752,0.0002549,58862.0,58861.0,1.36553]
[1725042064952,0.0002549,58862.0,58861.0,1.36653]
[1725042065755,0.1332,58867.0,58866.0,0.254826]
[1725042065953,0.1332,58867.0,58866.0,0.855626]
[1725042066258,0.1332,58867.0,58866.0,1.965266]
[1725042067158,0.0002549,58872.0,58866.0,1.880324]
[1725042067353,9e-07,58872.0,58871.0,0.77067]
[1725042067743,9e-07,58872.0,58871.0,1.965205]
[1725042068860,9e-07,58872.0,58871.0,1.966205]
[1725042069656,9e-07,58872.0,58871.0,0.686735]
[1725042070063,9e-07,58872.0,58871.0,0.687735]
[1725042070262,0.0849349,58872.0,58871.0,0.3628]
[1725042070559,0.0849349,58872.0,58863.0,0.0002549]
[1725042070560,1.3644029,58872.0,58863.0,0.0002549]
[1725042070864,0.40989,58864.0,58863.0,0.0002549]
[1725042071056,0.46202923,58864.0,58863.0,0.0002549]
[1725042071552,0.13710307,58864.0,58863.0,0.0002549]
[1725042071757,0.084945,58864.0,58863.0,0.0002549]
[1725042072260,0.16989,58864.0,58863.0,0.0012549]
[1725042072467,0.97168807,58864.0,58863.0,0.0012549]
[1725042072658,1.19533,58864.0,58863.0,0.0012549]
[1725042072846,1.19433,58864.0,58863.0,0.0012549]
[1725042073053,1.109385,58864.0,58863.0,0.0012549]
[1725042073466,1.16154653,58864.0,58863.0,0.0012549]
[1725042073965,1.00649153,58864.0,58863.0,0.0012549]
[1725042074267,1.00849153,58864.0,58863.0,0.0022549]
[1725042074563,0.95733,58864.0,58863.0,0.0022549]
[1725042074963,1.79733,58864.0,58863.0,0.0022549]
[1725042075361,0.084973,58845.0,58844.0,0.3286]
[1725042075556,0.084973,58845.0,58843.0,0.3608]
[1725042075557,0.24,58854.0,58843.0,0.3608]
[1725042075756,0.084972,58846.0,58843.0,0.3608]
[1725042075956,0.3608,58855.0,58845.0,0.24]
[1725042075957,0.084966,58850.0,58845.0,0.24]
[1725042076267,0.0002549,58853.0,58849.0,0.445766]
[1725042076452,0.084964,58851.0,58849.0,0.445766]
[1725042076762,0.084966,58850.0,58849.0,0.3608]
[1725042077348,0.085966,58850.0,58849.0,0.3608]
[1725042077753,0.084966,58850.0,58849.0,0.3618]
[1725042078273,0.002,58851.0,58849.0,0.6018]
[1725042078466,0.002,58851.0,58850.0,0.084966]
[1725042079368,0.0002549,58853.0,58849.0,0.3638]
[1725042079557,0.084966,58850.0,58849.0,0.3628]
[1725042079855,0.083966,58850.0,58849.0,0.3618]
[1725042080471,0.083966,58850.0,58849.0,0.3628]
[1725042080666,0.002,58851.0,58850.0,0.084966]
[1725042081168,0.0002549,58853.0,58852.0,0.084963]
[1725042082265,0.0002549,58853.0,58852.0,1.279686]
[1725042082658,0.052157,58872.0,58866.0,0.084942]
[1725042082964,0.052157,58872.0,58850.0,0.002]
[1725042082965,0.052157,58872.0,58871.0,0.084935]
[1725042083166,0.38833,58875.0,58869.0,0.24]
[1725042083167,0.08493,58875.0,58869.0,0.24]
[1725042083366,0.084926,58878.0,58873.0,0.24]
[1725042083574,0.1332,58878.0,58877.0,0.084927]
[1725042083763,0.14931848,58878.0,58877.0,0.445727]
[1725042084065,0.23424348,58878.0,58877.0,0.3608]
[1725042084660,0.1332,58878.0,58877.0,0.445727]
[1725042084975,0.1332,58883.0,58882.0,0.084919]
[1725042085264,6e-05,58888.0,58883.0,0.084917]
[1725042085265,0.218113,58887.0,58883.0,0.084917]
[1725042085871,0.084914,58886.0,58883.0,0.084917]
[1725042086170,0.1332,58887.0,58883.0,0.084917]
[1725042086370,0.1332,58887.0,58884.0,0.084916]
[1725042086371,0.084915,58885.0,58884.0,0.084916]
[1725042086566,0.1382,58887.0,58883.0,0.001]
[1725042087170,0.1332,58887.0,58886.0,0.084914]
[1725042087777,0.223112,58887.0,58886.0,0.084914]
[1725042088369,0.223112,58887.0,58883.0,0.001]
[1725042088370,0.1382,58887.0,58883.0,0.001]
[1725042088574,0.224112,58887.0,58886.0,0.001]
[1725042089265,0.309024,58887.0,58886.0,0.001]
[1725042089575,0.308024,58887.0,58886.0,0.001]
[1725042089771,0.549024,58887.0,58886.0,0.001]
[1725042089966,0.169832,58884.0,58883.0,0.001]
[1725042090468,1.33145223,58884.0,58883.0,0.001]
[1725042090983,0.73145223,58884.0,58883.0,0.001]
[1725042091270,1.33145223,58884.0,58883.0,0.001]
[1725042091769,0.083925,58878.0,58877.0,0.3608]
[1725042092469,0.082925,58878.0,58877.0,0.3608]
[1725042092773,0.081925,58878.0,58877.0,0.3608]
[1725042092961,0.086925,58878.0,58877.0,0.3618]
[1725042093561,0.087925,58878.0,58877.0,0.3628]
[1725042093980,0.17285,58878.0,58877.0,0.3628]
[1725042094279,0.92237,58878.0,58877.0,0.002]
[1725042094468,1.57451264,58878.0,58877.0,0.002]
[1725042095070,2.02024094,58878.0,58877.0,0.002]
[1725042096075,0.82579594,58878.0,58877.0,0.002]
[1725042096369,1.33531594,58878.0,58877.0,0.002]
[1725042096576,1.99625205,58878.0,58877.0,0.002]
[1725042098674,0.64673205,58878.0,58877.0,0.002]
[1725042098872,0.58579594,58878.0,58877.0,0.002]
[1725042099265,0.50087094,58878.0,58877.0,0.002]
[1725042099461,0.14007094,58878.0,58877.0,0.086927]
[1725042099675,0.14007094,58878.0,58877.0,0.447727]
[1725042099974,0.14006714,58878.0,58877.0,0.447727]
[1725042100179,0.087925,58878.0,58877.0,0.447727]
[1725042100672,0.05814214,58878.0,58877.0,0.687727]
[1725042100977,0.006,58878.0,58877.0,0.687727]
[1725042102173,0.05814214,58878.0,58877.0,0.687727]
[1725042103371,0.006,58878.0,58877.0,0.687727]
[1725042105982,0.006,58878.0,58877.0,0.647727]
[1725042106172,0.006,58878.0,58877.0,0.732654]
[1725042106677,0.006,58878.0,58877.0,0.647727]
[1725042107276,0.006,58878.0,58877.0,0.817581]
[1725042108078,0.006,58878.0,58877.0,1.927101]
[1725042110387,0.006,58878.0,58877.0,0.732654]
[1725042110985,0.006,58878.0,58877.0,0.647727]
[1725042111469,0.090925,58878.0,58877.0,0.647727]
[1725042112076,0.17585,58878.0,58877.0,0.3628]
[1725042112269,0.22798791,58878.0,58877.0,0.3628]
[1725042113077,0.22798999,58878.0,58877.0,0.3628]
[1725042113891,0.52887323,58878.0,58877.0,0.002]
[1725042114187,0.24394823,58878.0,58877.0,0.002]
[1725042116887,0.15902323,58878.0,58877.0,0.002]
[1725042117075,0.10688324,58878.0,58877.0,0.002]
[1725042119994,0.19180824,58878.0,58877.0,0.002]
[1725042120187,0.2439532,58878.0,58877.0,0.002]
[1725042120887,1.4383982,58878.0,58877.0,0.002]
[1725042121087,1.4383982,58878.0,58872.0,0.3608]
[1725042121088,0.169864,58873.0,58872.0,0.3608]
[1725042121480,0.22200896,58873.0,58872.0,0.3608]
[1725042121991,0.22201254,58873.0,58872.0,0.3608]
[1725042122291,0.22201116,58873.0,58872.0,0.3608]
[1725042122484,0.13707916,58873.0,58872.0,0.3608]
[1725042122694,0.13707916,58873.0,58872.0,0.445734]
[1725042122695,0.084932,58873.0,58872.0,0.445734]
[1725042122994,0.084932,58873.0,58872.0,0.446734]
[1725042122995,0.090932,58873.0,58872.0,0.446734]
[1725042123197,0.006,58873.0,58872.0,0.446734]
[1725042123388,0.01,58873.0,58872.0,0.446734]
[1725042123694,0.01,58873.0,58872.0,0.531668]
[1725042123883,0.01,58873.0,58872.0,1.041228]
[1725042125286,0.01,58873.0,58872.0,0.531668]
[1725042126490,0.01,58873.0,58872.0,1.641228]
[1725042126994,0.01,58873.0,58872.0,1.726162]
[1725042133598,0.01,58873.0,58872.0,1.641228]
[1725042136310,0.01,58873.0,58872.0,1.041228]
[1725042136597,0.01,58873.0,58872.0,0.446734]
[1725042137502,0.03624681,58876.0,58872.0,0.446734]
[1725042137803,0.1464,58880.0,58875.0,0.2]
[1725042138001,0.1332,58881.0,58880.0,0.084922]
[1725042138903,0.1332,58881.0,58880.0,0.230122]
[1725042139600,0.1332,58881.0,58880.0,0.084922]
[1725042140098,0.1402,58881.0,58880.0,0.086922]
[1725042140596,0.08492,58882.0,58880.0,0.086922]
[1725042140597,0.04302456,58882.0,58881.0,0.084921]
[1725042141399,0.084915,58885.0,58884.0,0.084915]
[1725042141601,0.13704526,58887.0,58886.0,0.084913]
[1725042142006,0.06859125,58887.0,58886.0,0.084913]
[1725042142196,0.022,58890.0,58886.0,0.454741]
[1725042142396,0.022,58890.0,58889.0,0.730618]
[1725042142599,0.022,58890.0,58889.0,0.645709]
[1725042143004,0.022,58890.0,58889.0,0.3608]
[1725042143005,0.616348,58890.0,58889.0,0.3608]
[1725042143200,0.084909,58889.0,58879.0,0.3286]
[1725042143404,0.199,58886.0,58880.0,0.084922]
[1725042143603,0.084918,58883.0,58881.0,0.0002549]
[1725042143802,0.083919,58882.0,58881.0,0.0002549]
[1725042144707,0.083919,58882.0,58881.0,0.3610549]
[1725042144910,0.082919,58882.0,58881.0,0.3610549]
[1725042145909,0.085915,58886.0,58881.0,0.3620549]
[1725042146205,0.085915,58886.0,58885.0,0.284915]
[1725042147505,0.001,58886.0,58885.0,0.284915]
[1725042147707,0.001,58886.0,58885.0,0.87931]
[1725042148504,0.001,58886.0,58885.0,0.88031]
[1725042148899,0.001,58886.0,58885.0,0.30244039]
[1725042149399,0.022,58890.0,58885.0,0.21752539]
[1725042149599,0.106908,58890.0,58889.0,0.5608]
[1725042150507,0.106908,58890.0,58889.0,0.3608]
[1725042151106,0.701256,58890.0,58885.0,0.005]
[1725042151418,0.701256,58890.0,58882.0,0.3608]
[1725042151419,0.084918,58883.0,58882.0,0.3608]
[1725042151720,0.369836,58883.0,58882.0,0.3608]
[1725042151904,0.93145446,58883.0,58882.0,0.3608]
[1725042152301,0.93145446,58883.0,58869.0,0.3608]
[1725042152302,0.50948,58882.0,58869.0,0.3608]
[1725042152514,0.2,58870.0,58868.0,0.01621577]
[1725042152705,0.084945,58864.0,58863.0,0.3608]
[1725042153103,0.083945,58864.0,58863.0,0.3608]
[1725042153832,0.083945,58864.0,58863.0,0.3648]
[1725042154703,0.069945,58864.0,58863.0,0.3648]
[1725042155315,0.069945,58864.0,58863.0,0.3688]
[1725042155822,0.069945,58864.0,58858.0,0.0002549]
[1725042155823,0.084953,58859.0,58858.0,0.0002549]
[1725042156117,0.284953,58859.0,58858.0,0.0002549]
[1725042156318,1.394633,58859.0,58858.0,0.0002549]
[1725042156619,1.50774396,58859.0,58858.0,0.0002549]
[1725042157008,1.50874396,58859.0,58858.0,0.0102549]
[1725042157606,0.90874396,58859.0,58858.0,0.0102549]
[1725042157817,0.64779411,58859.0,58858.0,0.0102549]
[1725042158023,0.64879411,58859.0,58858.0,0.0182549]
[1725042158413,0.13911411,58859.0,58858.0,0.0182549]
[1725042158719,0.086953,58859.0,58858.0,0.1032089]
[1725042159021,0.002,58859.0,58858.0,0.1032089]
[1725042160013,0.086953,58859.0,58858.0,0.1032089]
[1725042160209,0.086953,58859.0,58858.0,0.0182549]
[1725042162516,0.086953,58859.0,58858.0,0.1032089]
[1725042162517,0.002,58859.0,58858.0,0.1032089]
[1725042163923,0.002,58859.0,58858.0,0.0182549]
[1725042164118,0.086953,58859.0,58858.0,0.0182549]
[1725042164721,0.802,58859.0,58843.0,0.3608]
[1725042165024,0.002,58859.0,58850.0,0.2]
[1725042165221,0.084961,58854.0,58850.0,0.2]
[1725042165415,0.084961,58853.0,58850.0,0.2]
[1725042165620,0.084957,58856.0,58848.0,0.084968]
[1725042165819,0.084965,58851.0,58848.0,0.084968]
[1725042166036,0.084966,58850.0,58848.0,0.084968]
[1725042166226,0.084967,58849.0,58846.0,0.0002549]
[1725042166523,0.084967,58850.0,58846.0,0.0002549]
[1725042166727,0.083967,58850.0,58846.0,0.0002549]
[1725042166916,0.006,58853.0,58846.0,0.0002549]
[1725042166917,0.084967,58849.0,58846.0,0.0002549]
[1725042167618,0.006,58849.0,58846.0,0.0012549]
[1725042168022,0.08497,58847.0,58846.0,0.0012549]
[1725042168618,0.36994,58847.0,58846.0,0.0012549]
[1725042169013,0.36994,58847.0,58846.0,0.0002549]
[1725042169235,0.084984,58837.0,58836.0,0.3608]
[1725042169417,0.084984,58837.0,58836.0,0.645786]
[1725042169722,0.3688,58847.0,58836.0,0.3608]
[1725042169914,0.084984,58837.0,58836.0,0.5608]
[1725042170326,0.084984,58837.0,58836.0,0.38034934]
[1725042170829,0.45673048,58841.0,58836.0,0.38034934]
[1725042171029,0.45585048,58841.0,58836.0,0.38034934]
[1725042171822,0.084984,58837.0,58836.0,0.38034934]
[1725042172020,0.084984,58837.0,58836.0,0.37734934]
[1725042173022,0.084984,58837.0,58836.0,0.01654934]
[1725042173319,0.2,58839.0,58831.0,0.0002549]
[1725042173320,0.084992,58832.0,58831.0,0.0002549]
[1725042173824,0.169984,58832.0,58831.0,0.0002549]
[1725042174224,0.084992,58832.0,58831.0,0.5610549]
[1725042174419,0.084981,58840.0,58833.0,0.084989]
[1725042174926,0.084981,58840.0,58831.0,0.5619349]
[1725042174927,0.084989,58834.0,58831.0,0.5619349]
[1725042175125,0.004,58832.0,58831.0,0.5610549]
[1725042175626,0.001,58832.0,58831.0,0.5650549]
[1725042176015,0.001,58832.0,58831.0,0.2042549]
[1725042176221,0.002,58832.0,58831.0,0.0002549]
[1725042176417,0.086992,58832.0,58831.0,0.0002549]
[1725042176622,0.286992,58832.0,58831.0,0.0002549]
[1725042177431,0.290992,58832.0,58831.0,0.0002549]
[1725042177621,0.090992,58832.0,58831.0,0.0002549]
[1725042181136,0.375984,58832.0,58831.0,0.0002549]
[1725042183032,0.006,58832.0,58831.0,0.0852479]
[1725042183224,0.006,58832.0,58831.0,0.2852479]
[1725042184625,0.006,58832.0,58831.0,1.3951679]
[1725042184825,0.006,58832.0,58831.0,1.41127504]
[1725042185336,0.08498,58840.0,58831.0,1.32628204]
[1725042185531,0.002,58832.0,58831.0,0.21636204]
[1725042185736,0.002,58832.0,58831.0,0.81636204]
[1725042185923,0.002,58832.0,58831.0,1.41127504]
[1725042186128,0.004,58832.0,58831.0,1.41127504]
[1725042186531,0.004,58832.0,58831.0,0.81127504]
[1725042186726,0.002,58832.0,58831.0,0.81127504]
[1725042187042,0.003,58832.0,58831.0,0.30135504]
[1725042187231,0.003,58832.0,58831.0,0.81127504]
[1725042187431,0.003,58832.0,58831.0,0.30135504]
[1725042187632,0.005,58832.0,58831.0,1.41127504]
[1725042188238,0.005,58832.0,58831.0,0.81127504]
[1725042188737,0.006,58832.0,58831.0,0.81127504]
[1725042189236,0.008,58832.0,58831.0,0.81127504]
[1725042189733,0.006,58832.0,58831.0,0.81127504]
[1725042189938,0.003,58832.0,58831.0,1.49626804]
[1725042190145,0.0002549,58842.0,58841.0,0.084979]
[1725042190932,0.0002549,58842.0,58841.0,0.594819]
[1725042191533,0.0122549,58842.0,58841.0,0.594819]
[1725042192252,0.0082549,58842.0,58841.0,0.10103616]
[1725042192742,0.0852319,58842.0,58841.0,0.01605716]
[1725042192947,0.0012549,58842.0,58841.0,0.084979]
[1725042193135,0.0032549,58842.0,58841.0,0.084979]
[1725042194143,0.0032549,58842.0,58841.0,0.169958]
[1725042194337,0.0022549,58842.0,58841.0,1.434198]
[1725042194537,0.0042549,58842.0,58841.0,1.434198]
[1725042194843,0.0032549,58842.0,58841.0,1.434198]
[1725042195042,0.3608,58857.0,58856.0,0.084957]
[1725042195233,0.084954,58858.0,58857.0,0.084955]
[1725042195845,0.5138,58867.0,58857.0,0.2]
[1725042196061,0.084948,58862.0,58861.0,0.3608]
[1725042196644,0.084948,58862.0,58857.0,0.2]
[1725042197846,0.094948,58862.0,58860.0,0.445751]
[1725042198347,0.094948,58862.0,58861.0,0.08495]
[1725042199043,0.103948,58862.0,58861.0,0.08495]
[1725042199843,0.023,58862.0,58861.0,0.28595]
[1725042201342,0.023,58862.0,58861.0,0.3709]
[1725042201543,0.023,58862.0,58861.0,0.88058]
[1725042201745,0.0002549,58868.0,58861.0,1.31068]
[1725042201940,0.3608,58887.0,58878.0,0.084924]
[1725042202149,0.084916,58884.0,58883.0,0.2]
[1725042202354,0.3608,58887.0,58883.0,0.2]
[1725042202545,0.022,58903.0,58886.0,0.5608]
[1725042202546,0.1563,58895.0,58886.0,0.5608]
[1725042202746,0.084896,58899.0,58889.0,0.2]
[1725042202955,0.0002549,58895.0,58889.0,0.284909]
[1725042203259,0.022,58903.0,58889.0,1.63118]
[1725042203567,0.02095019,58916.0,58915.0,0.084872]
[1725042203762,0.3608,58932.0,58915.0,1.33544]
[1725042203954,0.3608,58932.0,58928.0,0.2]
[1725042204346,0.3608,58932.0,58928.0,0.284853]
[1725042204655,0.022,58942.0,58928.0,1.30908]
[1725042204852,0.022,58942.0,58941.0,0.5608]
[1725042205047,0.022,58942.0,58936.0,0.3608]
[1725042205048,0.022,58942.0,58936.0,0.36105465]
[1725042205252,0.022,58942.0,58936.0,0.56105465]
[1725042205455,0.2,58937.0,58936.0,0.00025465]
[1725042206150,0.10071316,58938.0,58936.0,0.00025465]
[1725042206151,0.084839,58938.0,58936.0,0.00025465]
[1725042206352,0.084839,58938.0,58936.0,0.00225465]
[1725042206559,0.084845,58934.0,58919.0,0.6008]
[1725042206856,0.084845,58934.0,58916.0,0.1471]
[1725042206857,0.3608,58929.0,58924.0,0.3608]
[1725042207259,0.084854,58928.0,58924.0,0.3608]
[1725042207758,0.083854,58928.0,58924.0,0.3608]
[1725042207945,0.082854,58928.0,58924.0,0.3608]
[1725042208546,0.084856,58926.0,58924.0,0.001]
[1725042209065,0.593976,58926.0,58924.0,0.00090001]
[1725042209254,0.05210393,58925.0,58924.0,0.001]
[1725042209446,0.41290393,58925.0,58924.0,0.002]
[1725042209650,1.52202393,58925.0,58920.0,0.00025465]
[1725042209850,0.24,58921.0,58920.0,2.919e-05]
[1725042210050,0.37696693,58921.0,58920.0,2.919e-05]
[1725042210360,1.57098993,58921.0,58920.0,2.919e-05]
[1725042210560,1.63187296,58921.0,58920.0,2.919e-05]
[1725042210754,1.63087296,58921.0,58920.0,2.919e-05]
[1725042210951,1.63187296,58921.0,58920.0,2.919e-05]
[1725042211158,1.64187296,58921.0,58920.0,2.919e-05]
[1725042211353,1.65087296,58921.0,58920.0,1e-08]
[1725042211558,0.08488,58909.0,58908.0,0.3608]
[1725042211752,0.16696179,58910.0,58907.0,0.3608]
[1725042211950,0.16596179,58912.0,58910.0,0.084878]
[1725042212253,0.05211111,58912.0,58910.0,0.084878]
[1725042212449,0.05211111,58914.0,58910.0,0.084878]
[1725042212655,0.00025465,58917.0,58914.0,0.24]
[1725042213365,0.18365797,58916.0,58914.0,0.324873]
[1725042213669,0.05210743,58915.0,58914.0,0.24]
[1725042213860,0.3608,58916.0,58910.0,0.24]
[1725042214161,0.05210743,58915.0,58910.0,0.24]
[1725042214357,0.18365797,58915.0,58910.0,0.24]
[1725042214556,0.05210743,58914.0,58910.0,0.24]
[1725042214768,0.54445797,58916.0,58910.0,0.24]
[1725042214954,0.05210743,58915.0,58910.0,0.24]
[1725042215150,0.3608,58911.0,58905.0,0.00025465]
[1725042215356,0.084884,58907.0,58905.0,0.00025465]
[1725042215654,0.05210743,58910.0,58905.0,0.00025465]
[1725042215963,0.084879,58910.0,58909.0,0.24]
[1725042216959,0.00025465,58917.0,58916.0,0.08487]
[1725042217155,0.00025465,58917.0,58916.0,0.44567]
[1725042217759,0.00025465,58917.0,58916.0,1.55487]
[1725042218459,0.01425465,58917.0,58916.0,1.55687]
[1725042218861,0.00625465,58917.0,58916.0,1.55987]
[1725042219076,0.00625465,58917.0,58916.0,0.95987]
[1725042219368,0.00025465,58917.0,58916.0,0.96287]
[1725042220470,0.00025465,58917.0,58916.0,1.91967]
[1725042220671,0.00025465,58917.0,58916.0,1.92367]
[1725042220967,0.00025465,58917.0,58916.0,2.00554]
[1725042221169,0.3608,58936.0,58930.0,0.24]
[1725042221373,0.084841,58937.0,58932.0,0.084847]
[1725042221574,0.084841,58937.0,58935.0,0.24]
[1725042222073,0.084841,58937.0,58912.0,0.16153913]
[1725042222074,0.50904,58936.0,58912.0,0.16153913]
[1725042222278,0.50904,58936.0,58895.0,0.24]
[1725042222279,0.6008,58913.0,58895.0,0.24]
[1725042222572,0.3598,58907.0,58904.0,0.24]
[1725042223764,0.3588,58907.0,58904.0,0.24]
[1725042224174,0.00025465,58912.0,58906.0,0.3608]
[1725042225070,0.00025465,58912.0,58904.0,0.24]
[1725042225071,0.003,58907.0,58904.0,0.24]
[1725042225856,0.002,58907.0,58906.0,0.001]
[1725042226576,0.00625465,58912.0,58906.0,0.001]
[1725042226767,0.01425465,58912.0,58906.0,0.002]
[1725042227162,0.00625465,58912.0,58906.0,0.001]
[1725042227358,0.00625465,58912.0,58906.0,0.002]
[1725042227359,0.008,58907.0,58906.0,0.002]
[1725042227667,0.008,58907.0,58906.0,0.001]
[1725042227873,0.012,58907.0,58906.0,0.001]
[1725042228076,0.004,58907.0,58906.0,0.001]
[1725042228573,0.008,58907.0,58906.0,0.001]
[1725042228769,0.014,58907.0,58906.0,0.002]
[1725042230079,0.006,58907.0,58906.0,0.001]
[1725042230275,0.015,58907.0,58906.0,0.002]
[1725042230769,0.015,58907.0,58906.0,1.11128]
[1725042231068,0.009,58907.0,58906.0,1.11028]
[1725042231275,0.015,58907.0,58906.0,1.26268]
[1725042231469,0.29442788,58926.0,58906.0,1.50368]
[1725042231774,0.29442788,58926.0,58911.0,0.6008]
[1725042232272,0.3608,58921.0,58911.0,0.6008]